Workbook

Sheet function
C1: Tangentoidal Functions
D3: This program lets you investigate the
D4: properties of the tangentoidal functions
D5: based on the parameter a
C12: What is the value a (0-20)? | E12: =F12/10 -> 13.6 | F12: 136
D15: What is xMin? | E15: -2
D16: What is xMax? | E16: 11
A20: Click each item below for suggestions and investigations
D21: Item 1
D22: Item 2
D23: Item 3
A27: To access/download all the DIGMath Apps for Calculus
A28: Click this link: | D28: DIGMath for Calculus
A30: Created by: Sheldon P. Gordon & Florence S. Gordon
A31: Farmingdale State College NYIT
A32: Development of this module was supported by the
A33: NSF's Division of Undergraduate Education
A34: under grants DUE-0310123 and DUE-0442160.
X59: =IF(Sheet2!A57<=flips,Sheet2!A57,"") -> 
X60: =IF(Sheet2!A58<=flips,Sheet2!A58,"") -> 
X61: =IF(Sheet2!A59<=flips,Sheet2!A59,"") -> 
X62: =IF(Sheet2!A60<=flips,Sheet2!A60,"") -> 
X63: =IF(Sheet2!A61<=flips,Sheet2!A61,"") -> 
X64: =IF(Sheet2!A62<=flips,Sheet2!A62,"") -> 
X65: =IF(Sheet2!A63<=flips,Sheet2!A63,"") -> 
X66: =IF(Sheet2!A64<=flips,Sheet2!A64,"") -> 
X67: =IF(Sheet2!A65<=flips,Sheet2!A65,"") -> 
X68: =IF(Sheet2!A66<=flips,Sheet2!A66,"") -> 
X69: =IF(Sheet2!A67<=flips,Sheet2!A67,"") -> 
X70: =IF(Sheet2!A68<=flips,Sheet2!A68,"") -> 
X71: =IF(Sheet2!A69<=flips,Sheet2!A69,"") -> 
X72: =IF(Sheet2!A70<=flips,Sheet2!A70,"") -> 
X73: =IF(Sheet2!A71<=flips,Sheet2!A71,"") -> 
X74: =IF(Sheet2!A72<=flips,Sheet2!A72,"") -> 
X75: =IF(Sheet2!A73<=flips,Sheet2!A73,"") -> 
X76: =IF(Sheet2!A74<=flips,Sheet2!A74,"") -> 
X77: =IF(Sheet2!A75<=flips,Sheet2!A75,"") -> 
X78: =IF(Sheet2!A76<=flips,Sheet2!A76,"") -> 
X79: =IF(Sheet2!A77<=flips,Sheet2!A77,"") -> 
X80: =IF(Sheet2!A78<=flips,Sheet2!A78,"") -> 
X81: =IF(Sheet2!A79<=flips,Sheet2!A79,"") -> 
X82: =IF(Sheet2!A80<=flips,Sheet2!A80,"") -> 
X83: =IF(Sheet2!A81<=flips,Sheet2!A81,"") -> 
X84: =IF(Sheet2!A82<=flips,Sheet2!A82,"") -> 
X85: =IF(Sheet2!A83<=flips,Sheet2!A83,"") -> 
X86: =IF(Sheet2!A84<=flips,Sheet2!A84,"") -> 
X87: =IF(Sheet2!A85<=flips,Sheet2!A85,"") -> 
X88: =IF(Sheet2!A86<=flips,Sheet2!A86,"") -> 
X89: =IF(Sheet2!A87<=flips,Sheet2!A87,"") -> 
X90: =IF(Sheet2!A88<=flips,Sheet2!A88,"") -> 
X91: =IF(Sheet2!A89<=flips,Sheet2!A89,"") -> 
X92: =IF(Sheet2!A90<=flips,Sheet2!A90,"") -> 
X93: =IF(Sheet2!A91<=flips,Sheet2!A91,"") -> 
X94: =IF(Sheet2!A92<=flips,Sheet2!A92,"") -> 
X95: =IF(Sheet2!A93<=flips,Sheet2!A93,"") -> 
X96: =IF(Sheet2!A94<=flips,Sheet2!A94,"") -> 
X97: =IF(Sheet2!A95<=flips,Sheet2!A95,"") -> 
X98: =IF(Sheet2!A96<=flips,Sheet2!A96,"") -> 
X99: =IF(Sheet2!A97<=flips,Sheet2!A97,"") -> 
X100: =IF(Sheet2!A98<=flips,Sheet2!A98,"") -> 
X101: =IF(Sheet2!A99<=flips,Sheet2!A99,"") -> 
X102: =IF(Sheet2!A100<=flips,Sheet2!A100,"") -> 
X103: =IF(Sheet2!A101<=flips,Sheet2!A101,"") -> 
X104: =IF(Sheet2!A102<=flips,Sheet2!A102,"") -> 
X105: =IF(Sheet2!A103<=flips,Sheet2!A103,"") -> 
X106: =IF(Sheet2!A104<=flips,Sheet2!A104,"") -> 
X107: =IF(Sheet2!A105<=flips,Sheet2!A105,"") -> 
X108: =IF(Sheet2!A106<=flips,Sheet2!A106,"") -> 
X109: =IF(Sheet2!A107<=flips,Sheet2!A107,"") -> 
X110: =IF(Sheet2!A108<=flips,Sheet2!A108,"") -> 
X111: =IF(Sheet2!A109<=flips,Sheet2!A109,"") -> 
X112: =IF(Sheet2!A110<=flips,Sheet2!A110,"") -> 
X113: =IF(Sheet2!A111<=flips,Sheet2!A111,"") -> 
X114: =IF(Sheet2!A112<=flips,Sheet2!A112,"") -> 
X115: =IF(Sheet2!A113<=flips,Sheet2!A113,"") -> 
X116: =IF(Sheet2!A114<=flips,Sheet2!A114,"") -> 
X117: =IF(Sheet2!A115<=flips,Sheet2!A115,"") -> 
X118: =IF(Sheet2!A116<=flips,Sheet2!A116,"") -> 
X119: =IF(Sheet2!A117<=flips,Sheet2!A117,"") -> 
X120: =IF(Sheet2!A118<=flips,Sheet2!A118,"") -> 
X121: =IF(Sheet2!A119<=flips,Sheet2!A119,"") -> 
X122: =IF(Sheet2!A120<=flips,Sheet2!A120,"") -> 
X123: =IF(Sheet2!A121<=flips,Sheet2!A121,"") -> 
X124: =IF(Sheet2!A122<=flips,Sheet2!A122,"") -> 
X125: =IF(Sheet2!A123<=flips,Sheet2!A123,"") -> 
X126: =IF(Sheet2!A124<=flips,Sheet2!A124,"") -> 
X127: =IF(Sheet2!A125<=flips,Sheet2!A125,"") -> 
X128: =IF(Sheet2!A126<=flips,Sheet2!A126,"") -> 
X129: =IF(Sheet2!A127<=flips,Sheet2!A127,"") -> 
X130: =IF(Sheet2!A128<=flips,Sheet2!A128,"") -> 
X131: =IF(Sheet2!A129<=flips,Sheet2!A129,"") -> 
X132: =IF(Sheet2!A130<=flips,Sheet2!A130,"") -> 
X133: =IF(Sheet2!A131<=flips,Sheet2!A131,"") -> 
X134: =IF(Sheet2!A132<=flips,Sheet2!A132,"") -> 
X135: =IF(Sheet2!A133<=flips,Sheet2!A133,"") -> 
X136: =IF(Sheet2!A134<=flips,Sheet2!A134,"") -> 
X137: =IF(Sheet2!A135<=flips,Sheet2!A135,"") -> 
X138: =IF(Sheet2!A136<=flips,Sheet2!A136,"") -> 
X139: =IF(Sheet2!A137<=flips,Sheet2!A137,"") -> 
X140: =IF(Sheet2!A138<=flips,Sheet2!A138,"") -> 
X141: =IF(Sheet2!A139<=flips,Sheet2!A139,"") -> 
X142: =IF(Sheet2!A140<=flips,Sheet2!A140,"") -> 
X143: =IF(Sheet2!A141<=flips,Sheet2!A141,"") -> 
X144: =IF(Sheet2!A142<=flips,Sheet2!A142,"") -> 
X145: =IF(Sheet2!A143<=flips,Sheet2!A143,"") -> 
X146: =IF(Sheet2!A144<=flips,Sheet2!A144,"") -> 
X147: =IF(Sheet2!A145<=flips,Sheet2!A145,"") -> 
X148: =IF(Sheet2!A146<=flips,Sheet2!A146,"") -> 
X149: =IF(Sheet2!A147<=flips,Sheet2!A147,"") -> 
X150: =IF(Sheet2!A148<=flips,Sheet2!A148,"") -> 
X151: =IF(Sheet2!A149<=flips,Sheet2!A149,"") -> 
X152: =IF(Sheet2!A150<=flips,Sheet2!A150,"") -> 
X153: =IF(Sheet2!A151<=flips,Sheet2!A151,"") -> 

Sheet Sheet2
A1: 0.000 | B1: =SIN(A1)/(m+COS(A1)) -> 0 | D1: dx = | E1: =(b-a)/1000 -> 0.013
A2: =A1+dx -> 0.013 | B2: 0.0008903910324
A3: 0.026 | B3: 0.001780662507
A4: 0.039 | B4: 0.002670694867
A5: 0.052 | B5: 0.003560368564
A6: 0.065 | B6: 0.004449564057
A7: 0.078 | B7: 0.005338161816
A8: 0.091 | B8: 0.006226042327
A9: 0.104 | B9: 0.007113086092
A10: 0.117 | B10: 0.007999173634
A11: 0.130 | B11: 0.008884185501
A12: 0.143 | B12: 0.009768002267
A13: 0.156 | B13: 0.01065050453
A14: 0.169 | B14: 0.01153157294
A15: 0.182 | B15: 0.01241108816
A16: 0.195 | B16: 0.0132889309
A17: 0.208 | B17: 0.01416498193
A18: 0.221 | B18: 0.01503912204
A19: 0.234 | B19: 0.01591123209
A20: 0.247 | B20: 0.01678119299
A21: 0.260 | B21: 0.01764888571
A22: 0.273 | B22: 0.01851419127
A23: 0.286 | B23: 0.01937699077
A24: 0.299 | B24: 0.02023716538
A25: 0.312 | B25: 0.02109459635
A26: 0.325 | B26: 0.02194916498
A27: 0.338 | B27: 0.02280075269
A28: 0.351 | B28: 0.02364924098
A29: 0.364 | B29: 0.02449451143
A30: 0.377 | B30: 0.02533644573
A31: 0.390 | B31: 0.02617492568
A32: 0.403 | B32: 0.02700983318
A33: 0.416 | B33: 0.02784105025
A34: 0.429 | B34: 0.02866845905
A35: 0.442 | B35: 0.02949194182
A36: 0.455 | B36: 0.030311381
A37: 0.468 | B37: 0.03112665911
A38: 0.481 | B38: 0.03193765886
A39: 0.494 | B39: 0.03274426309
A40: 0.507 | B40: 0.03354635483
A41: 0.520 | B41: 0.03434381725
A42: 0.533 | B42: 0.0351365337
A43: 0.546 | B43: 0.03592438774
A44: 0.559 | B44: 0.03670726311
A45: 0.572 | B45: 0.03748504373
A46: 0.585 | B46: 0.03825761378
A47: 0.598 | B47: 0.0390248576
A48: 0.611 | B48: 0.03978665981
A49: 0.624 | B49: 0.04054290525
A50: 0.637 | B50: 0.04129347899
A51: 0.650 | B51: 0.04203826639
A52: 0.663 | B52: 0.04277715306
A53: 0.676 | B53: 0.04351002489
A54: 0.689 | B54: 0.04423676807
A55: 0.702 | B55: 0.04495726907
A56: 0.715 | B56: 0.04567141472
A57: 0.728 | B57: 0.04637909211
A58: 0.741 | B58: 0.04708018873
A59: 0.754 | B59: 0.04777459239
A60: 0.767 | B60: 0.04846219125
A61: 0.780 | B61: 0.04914287389
A62: 0.793 | B62: 0.04981652923
A63: 0.806 | B63: 0.05048304663
A64: 0.819 | B64: 0.05114231585
A65: 0.832 | B65: =SIN(A65)/(m+COS(A65)) -> 0.0517942271
A66: =A65+dx -> 0.845 | B66: 0.05243867102
A67: 0.858 | B67: 0.05307553872
A68: 0.871 | B68: 0.05370472179
A69: 0.884 | B69: 0.05432611232
A70: 0.897 | B70: 0.05493960291
A71: 0.910 | B71: 0.05554508668
A72: 0.923 | B72: 0.0561424573
A73: 0.936 | B73: 0.056731609
A74: 0.949 | B74: 0.0573124366
A75: 0.962 | B75: 0.05788483551
A76: 0.975 | B76: 0.05844870176
A77: 0.988 | B77: 0.05900393202
A78: 1.001 | B78: 0.05955042361
A79: 1.014 | B79: 0.06008807453
A80: 1.027 | B80: 0.06061678347
A81: 1.040 | B81: 0.06113644984
A82: 1.053 | B82: 0.06164697379
A83: 1.066 | B83: 0.06214825622
A84: 1.079 | B84: 0.06264019882
A85: 1.092 | B85: 0.06312270406
A86: 1.105 | B86: 0.06359567526
A87: 1.118 | B87: 0.06405901657
A88: 1.131 | B88: 0.06451263302
A89: 1.144 | B89: 0.06495643051
A90: 1.157 | B90: 0.06539031589
A91: 1.170 | B91: 0.06581419691
A92: 1.183 | B92: 0.06622798232
A93: 1.196 | B93: 0.06663158184
A94: 1.209 | B94: 0.06702490621
A95: 1.222 | B95: 0.0674078672
A96: 1.235 | B96: 0.06778037766
A97: 1.248 | B97: 0.06814235153
A98: 1.261 | B98: 0.06849370385
A99: 1.274 | B99: 0.06883435081
A100: 1.287 | B100: 0.06916420979
A101: 1.300 | B101: 0.06948319934
A102: 1.313 | B102: 0.06979123925
A103: 1.326 | B103: 0.07008825057
A104: 1.339 | B104: 0.07037415562
A105: 1.352 | B105: 0.07064887802
A106: 1.365 | B106: 0.07091234276
A107: 1.378 | B107: 0.07116447616
A108: 1.391 | B108: 0.07140520595
A109: 1.404 | B109: 0.0716344613
A110: 1.417 | B110: 0.07185217282
A111: 1.430 | B111: 0.07205827259
A112: 1.443 | B112: 0.07225269423
A113: 1.456 | B113: 0.07243537289
A114: 1.469 | B114: 0.07260624528
A115: 1.482 | B115: 0.07276524975
A116: 1.495 | B116: 0.07291232625
A117: 1.508 | B117: 0.07304741642
A118: 1.521 | B118: 0.07317046356
A119: 1.534 | B119: 0.07328141273
A120: 1.547 | B120: 0.07338021074
A121: 1.560 | B121: 0.07346680618
A122: 1.573 | B122: 0.07354114944
A123: 1.586 | B123: 0.07360319281
A124: 1.599 | B124: 0.0736528904
A125: 1.612 | B125: 0.07369019827
A126: 1.625 | B126: 0.07371507442
A127: 1.638 | B127: 0.07372747879
A128: 1.651 | B128: 0.07372737337
A129: 1.664 | B129: =SIN(A129)/(m+COS(A129)) -> 0.07371472213
A130: =A129+dx -> 1.677 | B130: 0.07368949115
A131: 1.690 | B131: 0.07365164858
A132: 1.703 | B132: 0.0736011647
A133: 1.716 | B133: 0.07353801195
A134: 1.729 | B134: 0.07346216493
A135: 1.742 | B135: 0.07337360048
A136: 1.755 | B136: 0.07327229767
A137: 1.768 | B137: 0.07315823785
A138: 1.781 | B138: 0.07303140467
A139: 1.794 | B139: 0.07289178409
A140: 1.807 | B140: 0.07273936445
A141: 1.820 | B141: 0.07257413646
A142: 1.833 | B142: 0.07239609325
A143: 1.846 | B143: 0.07220523039
A144: 1.859 | B144: 0.07200154591
A145: 1.872 | B145: 0.07178504033
A146: 1.885 | B146: 0.0715557167
A147: 1.898 | B147: 0.07131358061
A148: 1.911 | B148: 0.07105864019
A149: 1.924 | B149: 0.0707909062
A150: 1.937 | B150: 0.070510392
A151: 1.950 | B151: 0.07021711356
A152: 1.963 | B152: 0.06991108956
A153: 1.976 | B153: 0.06959234132
A154: 1.989 | B154: 0.06926089288
A155: 2.002 | B155: 0.068916771
A156: 2.015 | B156: 0.06856000517
A157: 2.028 | B157: 0.06819062767
A158: 2.041 | B158: 0.06780867352
A159: 2.054 | B159: 0.06741418055
A160: 2.067 | B160: 0.06700718942
A161: 2.080 | B161: 0.06658774358
A162: 2.093 | B162: 0.06615588936
A163: 2.106 | B163: 0.06571167592
A164: 2.119 | B164: 0.06525515529
A165: 2.132 | B165: 0.06478638238
A166: 2.145 | B166: 0.06430541499
A167: 2.158 | B167: 0.06381231383
A168: 2.171 | B168: 0.06330714249
A169: 2.184 | B169: 0.06278996751
A170: 2.197 | B170: 0.06226085833
A171: 2.210 | B171: 0.06171988732
A172: 2.223 | B172: 0.06116712978
A173: 2.236 | B173: 0.06060266396
A174: 2.249 | B174: 0.06002657103
A175: 2.262 | B175: 0.0594389351
A176: 2.275 | B176: 0.05883984323
A177: 2.288 | B177: 0.05822938539
A178: 2.301 | B178: 0.05760765451
A179: 2.314 | B179: 0.05697474644
A180: 2.327 | B180: 0.05633075995
A181: 2.340 | B181: 0.05567579672
A182: 2.353 | B182: 0.05500996136
A183: 2.366 | B183: 0.05433336136
A184: 2.379 | B184: 0.05364610712
A185: 2.392 | B185: 0.05294831189
A186: 2.405 | B186: 0.0522400918
A187: 2.418 | B187: 0.05152156584
A188: 2.431 | B188: 0.05079285582
A189: 2.444 | B189: 0.05005408638
A190: 2.457 | B190: 0.04930538493
A191: 2.470 | B191: 0.0485468817
A192: 2.483 | B192: 0.04777870965
A193: 2.496 | B193: =SIN(A193)/(m+COS(A193)) -> 0.04700100447
A194: =A193+dx -> 2.509 | B194: 0.04621390458
A195: 2.522 | B195: 0.04541755108
A196: 2.535 | B196: 0.04461208772
A197: 2.548 | B197: 0.04379766089
A198: 2.561 | B198: 0.04297441956
A199: 2.574 | B199: 0.04214251531
A200: 2.587 | B200: 0.0413021022
... 801 more rows

Sheet Defining Function
A1: Defining a Function in Excel
A3: Computers have very specific rules you must follow when defining a function. If you don't, the program will either not work at all or will work incorrectly.
A5: 1. The Variable used should be the one named in the instruction, usually x, though sometimes y, t, Q (for an angle theta),
A6: or even x and y (for a function of two variables).
A8: 2. Order of Operations: There five arithmetic operations, addition (+), subtraction (-), multiplication (*), division (/), and exponentiation or power (^). When computers see any of these operation symbols, they perform the indicated steps in a very particular order. First, the power is done. Second, products and quotients of adjacent terms is done. Third, and last, sums and differences of adjacent terms are done. So, in 10*x^3 + 5*x – 7, say with x = 2, the first pass only calculates 2^3 and ignores the multiplications and the sums and differences to calculate 2^3 = 8. The second pass looks at 10*8 + 5*2 – 7 and only does the multiplications, so it produces 80 + 10 - 7. The third pass looks at the +’s and –‘s to produce 80 + 10 – 7 = 83.
A10: 3. Parentheses If you need an operation involving more than two adjacent terms, as in Ö4^3 + 6^2, the computer would take the square root of 4 to produce 2^3 + 6^2; it would then cube the 2 and square the 6 to produce 8 + 36; and finally it would add the 8 and the 36 to get 44. If you actually wanted the square root of the entire expression, you would need to use parentheses, as in Ö(4^3 + 6^2) to tell the computer to do all the operations inside the parentheses before taking the square root. Therefore, it would calculate (4^3 + 6^2) = 64 + 36 = 100 and then take the square root of Ö100 = 10.
A12: 4. Built-In Functions Computer programs have built-in functions for most common algebraic functions. In Excel, the square root function is denoted by SQRT(…), so SQRT(100) = 10. Alternatively, you could enter it as 100^.5 or 100^(1/2); notice that parentheses are needed to have the ½ done first. The common trig functions are SIN (…), COS (…), and TAN (…), where the arguments are automatically interpreted as being in radians, not degrees. The logarithm to the base 10 is represented by LOG (…) and the logarithm with the base e, known as the natural logarithm, is LN (…). The corresponding exponential function with base e is EXP (x). If x is the variable, then each of these would be SQRT (x), SIN (x), COS (x), TAN (x), LOG (x) (for log with base 10 ), LN (x) (for log with base e ), and EXP (x).

Sheet Sheet3

Sheet Sheet4
